fUSD/lending_fUSD_20250914
["ID","MTS","AMOUNT","RATE_DAILY","PERIOD"]
[385385934,1757811043231,-150.0,0.00036,120]
[385385936,1757811043240,-500.0,0.00036019,7]
[385385938,1757811043250,-168.0,0.00036084,2]
[385385940,1757811043260,-150.0,0.00036095,7]
[385385945,1757811043272,-150.0,0.00036109,120]
[385385948,1757811043283,-153.0,0.0003627,2]
[385385950,1757811043293,-150.0,0.00036404,120]
[385385952,1757811043302,-150.0,0.0003648,2]
[385385953,1757811043312,-150.0,0.0003653,120]
[385385957,1757811043322,-150.0,0.00036556,120]
[385385960,1757811043332,-1620.37037,0.0003659,2]
[385385962,1757811043341,-150.0,0.00036807,120]
[385385965,1757811043351,-666.49152276,0.0003681,2]
[385385969,1757811043363,-953.87884724,0.0003681,2]
[385385972,1757811043373,-1279.9452,0.00036812,2]
[385385975,1757811043383,-1000.0,0.00036812,2]
[385385977,1757811043393,-500.0,0.00036841,7]
[385385979,1757811043403,-1000.0,0.00036857,2]
[385385981,1757811043413,-2500.0,0.00036857,2]
[385385983,1757811043423,-1164.36776824,0.00036857,2]
[385385984,1757811043430,-545.59204914,0.00036872,2]
[385385987,1757811043442,-4454.40795086,0.00036872,2]
[385385989,1757811043451,-150.0,0.00036876,120]
[385385991,1757811043462,-1000.0,0.00036881,7]
[385385993,1757811043472,-1000.0,0.00036882,7]
[385385995,1757811043481,-1000.0,0.00036882,7]
[385385997,1757811043491,-1164.36776824,0.00036886,2]
[385385999,1757811043500,-308.77294242,0.00036893,9]
[385386001,1757811043511,-2321.76655742,0.00036893,9]
[385386003,1757811043523,-1000.0,0.00036896,7]
[385386005,1757811043532,-5622.07367747,0.00036899,2]
[385386007,1757811043543,-348.33481778,0.00036899,2]
[385386034,1757811043788,-525.63298051,0.00036899,2]
[385386293,1757811046450,-1651.0544998,0.00036899,2]
[385386300,1757811046503,-627.34609756,0.00036899,2]
[385386302,1757811046515,-2862.98193018,0.00036899,2]
[385386304,1757811046525,-154.52679198,0.000369,15]
[385386306,1757811046534,-1164.36776824,0.00036915,2]
[385386308,1757811046544,-168.0,0.00036919,2]
[385386310,1757811046553,-839.607711,0.00036919,2]
[385386312,1757811046562,-458.23307093,0.00036944,2]
[385386314,1757811046574,-706.13469731,0.00036944,2]
[385386316,1757811046583,-247.66,0.00036947,2]
[385386318,1757811046592,-400.0,0.00036947,2]
[385386320,1757811046602,-421.28101938,0.00036947,2]
[385386322,1757811046611,-521.55657523,0.00036947,2]
[385386324,1757811046620,-400.0,0.00036947,2]
[385386326,1757811046629,-400.0,0.00036947,2]
[385386328,1757811046639,-512.11,0.00036947,2]
[385386330,1757811046648,-400.0,0.00036947,2]
[385386332,1757811046660,-400.0,0.00036947,2]
[385386334,1757811046669,-492.17,0.00036947,2]
[385386336,1757811046679,-499.44006,0.00036947,2]
[385386338,1757811046687,-400.0,0.00036947,2]
[385386340,1757811046696,-379.01781129,0.00036947,2]
[385386342,1757811046706,-636.8271452,0.00036947,2]
[385386344,1757811046716,-200.0,0.00036954,7]
[385386346,1757811046725,-150.0,0.00036954,7]
[385386348,1757811046734,-150.0,0.00036954,7]
[385386349,1757811046743,-150.0,0.00036954,7]
[385386350,1757811046752,-150.0,0.00036954,7]
[385386351,1757811046761,-150.0,0.00036954,7]
[385386352,1757811046771,-199.60495521,0.00036956,15]
[385386353,1757811046780,-500.0,0.00036956,15]
[385386354,1757811046789,-188.99773636,0.00036956,2]
[385386355,1757811046800,-211.00226364,0.00036956,2]
[385386356,1757811046809,-400.0,0.00036956,2]
[385386357,1757811046818,-400.0,0.00036956,2]
[385386358,1757811046827,-400.0,0.00036956,2]
[385386359,1757811046836,-400.0,0.00036956,2]
[385386360,1757811046845,-400.0,0.00036956,2]
[385386361,1757811046854,-400.0,0.00036956,2]
[385386362,1757811046863,-400.0,0.00036956,2]
[385386363,1757811046872,-400.0,0.00036956,2]
[385386364,1757811046882,-335.33215815,0.00036956,2]
[385386365,1757811046891,-400.0,0.00036956,2]
[385386366,1757811046901,-400.0,0.00036956,2]
[385386367,1757811046910,-402.31,0.00036956,2]
[385386368,1757811046919,-400.0,0.00036956,2]
[385386369,1757811046928,-400.0,0.00036956,2]
[385386370,1757811046937,-231.19691911,0.00036956,2]
[385386371,1757811046947,-400.0,0.00036956,2]
[385386372,1757811046956,-400.0,0.00036956,2]
[385386373,1757811046965,-500.0,0.00036956,2]
[385386374,1757811046974,-400.0,0.00036956,2]
[385386375,1757811046983,-399.77605006,0.00036956,2]
[385386376,1757811046992,-400.0,0.00036956,2]
[385386377,1757811047001,-400.0,0.00036956,2]
[385386378,1757811047011,-400.0,0.00036956,2]
[385386379,1757811047022,-400.0,0.00036956,2]
[385386380,1757811047031,-400.0,0.00036956,2]
[385386381,1757811047040,-400.0,0.00036956,2]
[385386382,1757811047050,-281.76065916,0.00036956,2]
[385386383,1757811047059,-400.0,0.00036956,2]
[385386384,1757811047069,-400.0,0.00036956,2]
[385386385,1757811047079,-400.0,0.00036956,2]
[385386386,1757811047092,-474.37,0.00036956,2]
[385386387,1757811047102,-400.0,0.00036957,2]
[385386388,1757811047112,-400.0,0.00036957,2]
[385386389,1757811047125,-400.0,0.00036957,2]
[385386390,1757811047135,-136.67376414,0.00036957,2]
[385386391,1757811047151,-263.32623586,0.00036957,2]
[385386392,1757811047161,-400.0,0.00036957,2]
[385386393,1757811047170,-400.0,0.00036957,2]
[385386394,1757811047179,-400.0,0.00036957,2]
[385386396,1757811047190,-400.0,0.00036957,2]
[385386398,1757811047199,-400.0,0.00036957,2]
[385386399,1757811047209,-400.0,0.00036957,2]
[385386400,1757811047218,-400.0,0.00036957,2]
[385386401,1757811047227,-400.0,0.00036957,2]
[385386402,1757811047236,-400.0,0.00036957,2]
[385386403,1757811047245,-423.04,0.00036957,2]
[385386404,1757811047254,-169.21824418,0.00036957,2]
[385386405,1757811193293,2541.33752772,0.00028,14]
[385386406,1757811203645,2400.0,0.00028,15]
[385386407,1757811227446,173.01,0.00017953,2]
[385386410,1757811882865,400.0,0.0002333,15]
[385386411,1757811915785,2000.0,0.00030137,120]
[385386412,1757811943538,3003.0,0.00030137,120]
[385386414,1757812153772,473.72412235,0.0003,30]
[385386417,1757812231583,-3355.50536166,0.000249,2]
[385386418,1757812231665,-262.14180756,0.000249,2]
[385386419,1757812231686,-170.57651086,0.00028518,2]
[385386420,1757812231696,-245.05829892,0.00028618,7]
[385386421,1757812231705,-1122.83221603,0.0002887,2]
[385386422,1757812231715,-159.17,0.00030968,2]
[385386423,1757812231725,-466.83,0.00032,2]
[385386424,1757812231734,-316.0,0.00032449,3]
[385386425,1757812231744,-207.0,0.00032449,3]
[385386426,1757812231753,-712.56,0.0003245,2]
[385386427,1757812231763,-4221.0,0.0003245,2]
[385386428,1757812231773,-243.98393315,0.00033663,2]
[385386429,1757812231782,-500.0,0.00034375,7]
[385386430,1757812231792,-500.0,0.00034375,7]
[385386431,1757812231801,-800.0,0.00034915,13]
[385386432,1757812231811,-736.0,0.00034915,13]
[385386433,1757812231820,-255.70492129,0.00035058,2]
[385386434,1757812231830,-198.53,0.00035354,2]
[385386435,1757812231840,-150.0,0.0003537,120]
[385386436,1757812231849,-259.36368348,0.0003545,2]
[385386437,1757812231899,-3961.63631652,0.0003545,2]
[385386438,1757812231908,-851.96,0.00035459,120]
[385386439,1757812231918,-150.0,0.00035472,7]
[385386440,1757812231927,-180.01,0.00035478,2]
[385386441,1757812231937,-204.15,0.00035479,2]
[385386442,1757812231946,-200.0,0.0003555,2]
[385386443,1757812231956,-666.0,0.00035562,3]
[385386444,1757812231966,-297.08,0.00035569,2]
[385386445,1757812231975,-150.0,0.00035573,2]
[385386446,1757812231985,-201.21,0.00035602,2]
[385386447,1757812231998,-196.73874825,0.00035616,2]
[385386448,1757812232007,-4072.91,0.00035631,2]
[385386449,1757812232017,-150.0,0.00035642,2]
[385386450,1757812232026,-150.0,0.00035691,2]
[385386451,1757812232036,-283.63,0.00035712,2]
[385386452,1757812232046,-867.48,0.00035743,120]
[385386453,1757812232055,-500.0,0.00035769,13]
[385386454,1757812232065,-500.0,0.00035769,13]
[385386455,1757812232074,-500.0,0.00035769,13]
[385386456,1757812232084,-500.0,0.00035769,13]
[385386457,1757812232094,-500.0,0.00035769,13]
[385386458,1757812232103,-500.0,0.00035769,13]
[385386459,1757812232113,-500.0,0.00035769,13]
[385386460,1757812232124,-500.0,0.00035769,13]
[385386461,1757812232133,-2138.43,0.00035774,35]
[385386462,1757812232142,-222.46,0.00035901,2]
[385386463,1757812232153,-1389.64220915,0.00035947,2]
[385386465,1757812232162,-1635.16,0.00035967,2]
[385386466,1757812232172,-748.04,0.00035977,120]
[385386468,1757812232181,-500.0,0.00036019,7]
[385386471,1757812232191,-150.0,0.0003602,120]
[385386473,1757812232200,-150.0,0.00036163,120]
[385386474,1757812232210,-153.0,0.00036274,2]
[385386476,1757812232219,-153.0,0.00036274,2]
[385386478,1757812232229,-153.0,0.00036274,2]
[385386480,1757812232238,-153.0,0.00036274,2]
[385386483,1757812232248,-153.0,0.00036274,2]
[385386484,1757812232257,-153.0,0.00036274,2]
[385386486,1757812232267,-153.0,0.00036274,2]
[385386487,1757812232276,-153.0,0.00036274,2]
[385386488,1757812232285,-153.0,0.00036274,2]
[385386489,1757812232294,-153.0,0.00036274,2]
[385386490,1757812232303,-153.0,0.00036274,2]
[385386491,1757812232312,-153.0,0.00036274,2]
[385386492,1757812232320,-153.0,0.00036274,2]
[385386493,1757812232330,-153.0,0.00036274,2]
[385386494,1757812232339,-153.0,0.00036274,2]
[385386495,1757812232349,-153.0,0.00036274,2]
[385386496,1757812232359,-153.0,0.00036274,2]
[385386497,1757812232368,-168.0,0.00036312,2]
[385386498,1757812232378,-4295.4282697,0.00036422,2]
[385386499,1757812232394,-704.0180284,0.00036422,2]
[385386500,1757812232403,-228.983,0.00036422,45]
[385386501,1757812232413,-150.0,0.0003653,120]
[385386502,1757812232422,-2787.03703,0.0003659,2]
[385386503,1757812232432,-166.52,0.00036603,2]
[385386504,1757812232441,-1000.0,0.00036753,7]
[385386505,1757812232451,-1000.0,0.00036758,7]
[385386506,1757812232461,-1000.0,0.00036769,7]
[385386507,1757812232470,-150.0,0.00036793,7]
[385386508,1757812232481,-988.03052159,0.00036799,7]
[385386509,1757812232491,-12160.0961,0.00036857,2]
[385386510,1757812232500,-1000.0,0.00036857,2]
[385386511,1757812232509,-931.49421461,0.00036874,2]
[385386512,1757812232518,-1000.0,0.00036887,7]
[385386513,1757812232528,-158.01637,0.00036896,3]
[385386514,1757812232537,-1000.0,0.00036899,7]
[385386515,1757812232546,-49178.07301078,0.000369,60]
[385386516,1757812232561,-3420.02861065,0.000369,60]
[385386517,1757812232572,-606.97,0.000369,60]
[385386518,1757812232582,-5475.81019962,0.000369,60]
[385386519,1757812232596,-260.62219226,0.000369,60]
[385386521,1757812237654,-28910.04293681,0.000369,60]
[385386522,1757812237666,-638.32350002,0.000369,60]
[385386523,1757812237710,-5504.4,0.000369,60]
[385386531,1757812239881,-5971.21969714,0.000369,60]
[385386532,1757812239891,-931.49421459,0.00036901,2]
[385386533,1757812239901,-1000.0,0.00036905,7]
[385386534,1757812239910,-925.55421328,0.00036916,7]
[385386535,1757812239922,-74.44578672,0.00036916,7]
[385386536,1757812239932,-8872.77300801,0.0003692,12]
[385386537,1757812239944,-8943.78386462,0.0003692,12]
[385386538,1757812239956,-2064.15396066,0.0003692,12]
[385386539,1757812239965,-150.0,0.00036925,7]
[385386540,1757812239974,-1000.0,0.00036925,7]
[385386541,1757812239984,-1000.0,0.00036927,2]
[385386543,1757812239996,-931.49421459,0.00036928,2]
[385386544,1757812240006,-500.0,0.00036948,120]
[385386545,1757812240015,-703.296965,0.00036948,120]
[385386546,1757812240024,-500.0,0.00036948,120]
[385386547,1757812240032,-500.0,0.00036948,120]
[385386548,1757812240041,-200.0,0.00036954,7]
[385386550,1757812240051,-200.0,0.00036954,7]
[385386552,1757812240060,-200.0,0.00036954,7]
[385386553,1757812240069,-150.0,0.00036954,2]
[385386555,1757812240078,-150.0,0.00036954,7]
[385386557,1757812240087,-200.0,0.00036954,7]
[385386559,1757812240097,-202.52,0.00036954,7]
[385386562,1757812240106,-150.0,0.00036954,7]
[385386563,1757812240117,-276.08352127,0.00036955,15]
[385386564,1757812240128,-323.91647873,0.00036955,15]
[385386565,1757812240138,-277.35679052,0.00036955,15]
[385386566,1757812240147,-379.42639671,0.00036955,15]
[385386567,1757812240156,-322.6107,0.00036955,15]
[385386568,1757812240166,-559.66782253,0.00036955,15]
[385386569,1757812240175,-931.49421459,0.00036955,2]
[385386570,1757812240184,-4416.6844094,0.00036956,2]
[385386571,1757812240193,-400.0,0.00036956,2]
[385386572,1757812240202,-1332.68342241,0.00036956,2]
[385386577,1757812242729,-29.88868572,0.00036956,2]
[385386594,1757812245736,-1662.85428707,0.00036956,2]
[385386595,1757812245745,-325.17623452,0.00036957,2]
[385386596,1757812245847,-74.82376548,0.00036957,2]
[385386597,1757812245857,-500.0,0.00036973,5]
[385386598,1757812245866,-1826.92750634,0.00036973,2]
[385386599,1757812245877,-3286.05792818,0.00036973,2]
[385386606,1757812326697,1705.38,0.00030137,120]
[385386608,1757812507689,1262.17841217,0.00030136,120]
[385386609,1757812820973,1000.0,0.00030137,120]
[385386610,1757812845475,1000.0,0.00030137,120]
[385386611,1757812857048,1000.0,0.00030137,120]
[385386612,1757812863991,1000.0,0.00030137,120]
[385386613,1757812871287,1000.0,0.00030137,120]
[385386614,1757812878118,1000.0,0.00030137,120]
[385386615,1757812886163,1000.0,0.00030137,120]
[385386616,1757812906470,1000.0,0.00030137,120]
[385386617,1757812925521,1000.0,0.00029,30]
[385386618,1757812942019,1295.8,0.00029,30]
[385386620,1757813154868,10636.80476484,0.000191,2]
[385386626,1757813348964,510.09101073,0.0002021,2]
[385386627,1757813353159,-4845.177134,0.00024,5]
[385386631,1757813431959,-154.83185908,0.00024,5]
[385386632,1757813431969,-1200.0,0.00024899,2]
[385386633,1757813431978,-515.28,0.000249,2]
[385386634,1757813431987,-508.18143064,0.000249,2]
[385386635,1757813431999,-21.23856936,0.000249,2]
[385386636,1757813432008,-394.39242802,0.000249,2]
[385386637,1757813432019,-137.35757198,0.000249,2]
[385386638,1757813432028,-527.28,0.000249,2]
[385386639,1757813432039,-3467.7476827,0.000249,2]
[385386640,1757813432050,-599.21471772,0.00026326,2]
[385386641,1757813432060,-599.21471772,0.00026339,2]
[385386642,1757813432069,-599.21471772,0.0002635,2]
[385386643,1757813432078,-599.21471772,0.00026363,2]
[385386644,1757813432088,-599.21471772,0.00026373,2]
[385386645,1757813432097,-599.21471772,0.00026377,2]
[385386646,1757813432107,-599.21471772,0.00026427,2]
[385386647,1757813432117,-156.97,0.00027397,2]
[385386648,1757813432126,-160.0,0.00030181,2]
[385386649,1757813432136,-287.09767926,0.000303,5]
[385386650,1757813432145,-420.15,0.00032,2]
[385386651,1757813432155,-156.97,0.00033165,2]
[385386652,1757813432165,-512.449,0.0003331,2]
[385386653,1757813432174,-500.0,0.00034375,7]
[385386654,1757813432182,-200.0,0.00034929,2]
[385386655,1757813432191,-200.0,0.00034929,2]
[385386656,1757813432199,-200.0,0.00034929,2]
[385386657,1757813432208,-200.0,0.00034929,2]
[385386658,1757813432217,-200.0,0.00034929,2]
[385386659,1757813432226,-200.0,0.00034929,2]
[385386660,1757813432235,-200.0,0.00034929,2]
[385386661,1757813432244,-200.0,0.00034929,2]
[385386662,1757813432253,-200.0,0.00034929,2]
[385386663,1757813432261,-200.0,0.00034929,2]
[385386664,1757813432271,-500.0,0.00034929,120]
[385386665,1757813432279,-490.0,0.00034929,120]
[385386666,1757813432288,-200.0,0.00034929,2]
[385386667,1757813432297,-200.0,0.00034929,2]
[385386668,1757813432306,-200.0,0.00034929,2]
[385386669,1757813432315,-200.0,0.00034929,2]
[385386670,1757813432325,-200.0,0.00034929,2]
[385386671,1757813432335,-200.0,0.00034929,2]
[385386672,1757813432344,-200.0,0.00034929,2]
[385386674,1757813432353,-200.0,0.00034929,2]
[385386676,1757813432362,-200.0,0.00034929,2]
[385386678,1757813432371,-200.0,0.00034929,2]
[385386680,1757813432381,-200.0,0.00034929,2]
[385386682,1757813432390,-800.0,0.00034929,13]
[385386685,1757813432400,-800.0,0.00034929,13]
[385386688,1757813432409,-800.0,0.00034929,13]
[385386691,1757813432418,-800.0,0.00034929,13]
[385386693,1757813432427,-800.0,0.00034929,13]
[385386695,1757813432436,-800.0,0.00034929,13]
[385386697,1757813432445,-800.0,0.00034929,13]
[385386699,1757813432454,-800.0,0.00034929,13]
[385386701,1757813432462,-800.0,0.00034929,13]
[385386703,1757813432471,-800.0,0.00034929,13]
[385386705,1757813432481,-800.0,0.00034929,13]
[385386707,1757813432490,-800.0,0.00034929,13]
[385386709,1757813432499,-200.0,0.00034929,2]
[385386711,1757813432508,-200.0,0.00034929,2]
[385386713,1757813432516,-200.0,0.00034929,2]
[385386715,1757813432525,-67.98797749,0.00034929,2]
[385386717,1757813432541,-132.01202251,0.00034929,2]
[385386719,1757813432552,-200.0,0.00034929,2]
[385386721,1757813432561,-200.0,0.00034929,2]
[385386722,1757813432570,-200.0,0.00034929,2]
[385386723,1757813432580,-200.0,0.00034929,2]
[385386724,1757813432591,-200.0,0.00034929,2]
[385386725,1757813432602,-200.0,0.00034929,2]
[385386726,1757813432611,-16.64577291,0.00034929,2]
[385386727,1757813432630,-183.35422709,0.00034929,2]
[385386728,1757813432642,-200.0,0.00034929,2]
[385386729,1757813432651,-200.0,0.00034929,2]
[385386730,1757813432660,-200.0,0.00034929,2]
[385386731,1757813432670,-222.0,0.00034929,2]
[385386732,1757813432680,-800.0,0.00034929,13]
[385386733,1757813432689,-800.0,0.00034929,13]
[385386734,1757813432698,-800.0,0.00034929,13]
[385386735,1757813432708,-800.0,0.00034929,13]
[385386736,1757813432717,-800.0,0.00034929,13]
[385386737,1757813432726,-800.0,0.00034929,13]
[385386738,1757813432735,-800.0,0.00034929,13]
[385386739,1757813432744,-800.0,0.00034929,13]
[385386740,1757813432754,-800.0,0.00034929,13]
[385386741,1757813432763,-800.0,0.00034929,13]
[385386742,1757813432771,-800.0,0.00034929,13]
[385386743,1757813432780,-800.0,0.00034929,13]
[385386744,1757813432789,-807.0,0.00034929,13]
[385386745,1757813432798,-800.0,0.00034929,13]
[385386746,1757813432808,-800.0,0.00034929,13]
[385386747,1757813432816,-800.0,0.00034929,13]
[385386748,1757813432826,-800.0,0.00034929,13]
[385386749,1757813432835,-800.0,0.00034929,13]
[385386750,1757813432844,-800.0,0.00034929,13]
[385386751,1757813432853,-800.0,0.00034929,13]
[385386752,1757813432862,-800.0,0.00034929,13]
[385386753,1757813432871,-800.0,0.00034929,13]
[385386754,1757813432880,-800.0,0.00034929,13]
[385386755,1757813432888,-800.0,0.00034929,13]
[385386756,1757813432897,-800.0,0.00034929,13]
[385386757,1757813432906,-800.0,0.00034929,13]
[385386758,1757813432914,-800.0,0.00034929,13]
[385386759,1757813432923,-800.0,0.00034929,13]
[385386760,1757813432931,-800.0,0.00034929,13]
[385386761,1757813432940,-800.0,0.00034929,13]
[385386762,1757813432949,-532.50710299,0.00034929,13]
[385386763,1757813432961,-267.49289701,0.00034929,13]
[385386764,1757813432970,-316.53227677,0.00034929,13]
[385386765,1757813432981,-392.54313184,0.00034929,13]
[385386766,1757813432996,-90.92459139,0.00034929,13]
[385386767,1757813433005,-302.32286181,0.00034929,13]
[385386768,1757813433016,-323.3292545,0.00034929,13]
[385386769,1757813433028,-174.34788369,0.00034929,13]
[385386770,1757813433037,-800.0,0.00034929,13]
[385386771,1757813433047,-800.0,0.00034929,13]
[385386772,1757813433056,-800.0,0.00034929,13]
[385386773,1757813433065,-232.23158534,0.00034929,13]
[385386774,1757813433076,-567.76841466,0.00034929,13]
[385386775,1757813433086,-800.0,0.00034929,13]
[385386776,1757813433095,-800.0,0.00034929,13]
[385386777,1757813433104,-800.0,0.00034929,13]
[385386778,1757813433113,-800.0,0.00034929,13]
[385386779,1757813433122,-800.0,0.00034929,13]
[385386780,1757813433131,-800.0,0.00034929,13]
[385386781,1757813433140,-800.0,0.00034929,13]
[385386782,1757813433149,-800.0,0.00034929,13]
[385386783,1757813433159,-800.0,0.00034929,13]
[385386784,1757813433167,-800.0,0.00034929,13]
[385386785,1757813433177,-800.0,0.00034929,13]
[385386786,1757813433186,-800.0,0.00034929,13]
[385386787,1757813433195,-400.98474706,0.00034929,13]
[385386788,1757813433207,-399.01525294,0.00034929,13]
[385386789,1757813433217,-800.0,0.00034929,13]
[385386790,1757813433226,-701.68062,0.00034929,13]
[385386791,1757813433237,-98.31938,0.00034929,13]
[385386792,1757813433246,-800.0,0.00034929,13]
[385386793,1757813433256,-800.0,0.00034929,13]
[385386794,1757813433265,-800.0,0.00034929,13]
[385386795,1757813433275,-698.60621791,0.00034929,13]
[385386796,1757813433287,-101.39378209,0.00034929,13]
[385386797,1757813433296,-800.0,0.00034929,13]
[385386798,1757813433306,-800.0,0.00034929,13]
[385386799,1757813433315,-800.0,0.00034929,13]
[385386800,1757813433324,-800.0,0.00034929,13]
[385386801,1757813433334,-800.0,0.00034929,13]
[385386802,1757813433343,-500.0,0.00034973,3]
[385386803,1757813433353,-500.0,0.00034973,5]
[385386804,1757813433362,-500.0,0.00034973,5]
[385386805,1757813433372,-500.0,0.00035,5]
[385386806,1757813433381,-3000.0,0.00035105,2]
[385386807,1757813433391,-4016.00998349,0.00035368,2]
[385386808,1757813433403,-2468.84001651,0.00035368,2]
[385386809,1757813433413,-689.36,0.0003539,30]
[385386810,1757813433422,-212.99211257,0.00035469,2]
[385386811,1757813433432,-352.25560891,0.0003554,7]
[385386812,1757813433441,-668.44922804,0.00035541,2]
[385386813,1757813433486,-627.62514,0.00035541,2]
[385386814,1757813433498,-2959.29419777,0.00035541,2]
[385386817,1757813437955,-506.60143419,0.00035541,2]
[385386818,1757813437965,-150.0,0.00035568,120]
[385386819,1757813437975,-454.49856581,0.00035591,120]
[385386820,1757813437986,-463.93143419,0.00035591,120]
[385386821,1757813437995,-1003.78320777,0.000356,2]
[385386822,1757813438004,-150.0,0.000356,7]
[385386823,1757813438014,-197.90849813,0.00035616,2]
[385386824,1757813438023,-150.0,0.00035662,120]
[385386825,1757813438032,-150.0,0.00035732,120]
[385386826,1757813438041,-578.6,0.00035763,2]
[385386827,1757813438050,-2053.68,0.000358,2]
[385386828,1757813438059,-168.0,0.00035806,2]
[385386829,1757813438068,-150.0,0.00035914,120]
[385386830,1757813438077,-5107.02,0.00035931,2]
[385386831,1757813438087,-500.0,0.00036019,7]
[385386832,1757813438096,-150.0,0.00036061,120]
[385386833,1757813438105,-150.0,0.00036092,120]
[385386834,1757813438115,-150.0,0.00036123,120]
[385386835,1757813438124,-246.10521501,0.00036773,7]
[385386836,1757813438134,-553.7180093,0.00036803,7]
[385386837,1757813438144,-150.0,0.00036814,7]
[385386838,1757813438154,-277.0614,0.00036874,2]
[385386839,1757813438163,-1000.0,0.000369,2]
[385386840,1757813438173,-2294.1559,0.000369,2]
[385386841,1757813438183,-4002.79120916,0.000369,15]
[385386842,1757813438191,-183.186,0.000369,46]
[385386843,1757813438201,-500.0,0.00036901,120]
[385386844,1757813438210,-1364.4350278,0.00036912,2]
[385386845,1757813438219,-1205.3892681,0.00036912,2]
[385386846,1757813438229,-768.90213973,0.0003692,12]
[385386847,1757813438248,-141.63786027,0.0003692,12]
[385386848,1757813438257,-301.49306355,0.0003692,2]
[385386864,1757813439967,-785.69211434,0.0003331,2]
[385386865,1757813439979,-2360.02288566,0.0003331,2]
[385386866,1757813439988,-304.6,0.000369,31]
[385386867,1757813439998,-2021.03780645,0.0003692,2]
[385386868,1757813440007,-500.0,0.00036951,120]
[385386869,1757813440017,-200.0,0.00036954,7]
[385386870,1757813440026,-200.0,0.00036954,7]
[385386871,1757813440037,-200.0,0.00036954,7]
[385386872,1757813440047,-150.0,0.00036954,7]
[385386873,1757813440058,-150.0,0.00036957,120]
[385386874,1757813440067,-500.0,0.00036958,13]
[385386875,1757813440076,-500.0,0.00036958,13]
[385386876,1757813440086,-500.0,0.00036958,13]
[385386877,1757813440097,-500.0,0.00036958,13]
[385386878,1757813440107,-500.0,0.00036958,13]
[385386879,1757813440116,-500.0,0.00036958,13]
[385386880,1757813440125,-199.69075526,0.00036958,13]
[385386881,1757813440135,-322.6107,0.00036972,5]
[385386882,1757813440145,-151.0,0.00036972,5]
[385386883,1757813440157,-250.0,0.00036972,5]
[385386884,1757813440166,-721.12765535,0.00036972,5]
[385386885,1757813440175,-257.91778498,0.00036972,5]
[385386886,1757813440185,-151.0,0.00036972,5]
[385386887,1757813440194,-1000.0,0.00036972,5]
[385386888,1757813440344,-1000.0,0.00036972,5]
[385386889,1757813440354,-1000.0,0.00036972,5]
[385386890,1757813440363,-1000.0,0.00036972,5]
[385386891,1757813440372,-1000.0,0.00036972,5]
[385386892,1757813440382,-500.0,0.00036972,5]
[385386893,1757813440391,-184.00254688,0.00036972,5]
[385386894,1757813440400,-151.0,0.00036972,30]
[385386895,1757813440410,-158.79268,0.00036972,30]
[385386896,1757813440419,-151.0,0.00036972,30]
[385386897,1757813440428,-223.893784,0.00036972,30]
[385386898,1757813440437,-200.0,0.00036973,5]
[385386899,1757813440446,-200.0,0.00036973,5]
[385386900,1757813440455,-200.0,0.00036973,5]
[385386901,1757813440465,-200.0,0.00036973,5]
[385386902,1757813440474,-151.0,0.00036973,30]